{"text_format":"3","workbook":"xlsx","n_sheets":2,"sheets":["list","data"],"not_rendered":{"external_links":16,"defined_names":1},"read":"whole","date_system":"1900"}

{"sheet":"list","index":0,"n_rows":91,"n_cols":16,"rows_kept":91}
["№","СНИЛС","Фамлия","Имя","Отчество","Пол","Дата рождения","Участник с ОВЗ","Класс","Класс участия","Балл","Макс. Балл","Статус","Призер МЭ прошлого года","Учитель","Место работы учителя"]
[1,2,3,4,5,6,7,8,9,10,11,12,13,14,15,16]
[1,"178 172524 92","Хакимзянов ","Марат","Марселевич","м","2013-08-27","нет",4,4,19,35,"призер",null,"Соловьева Марина Павловна","МБОУ \"Гимназия №6\""]
[2,"17923967324","Осипова","Ева","Кирилловна","ж","2013-11-30","нет",4,4,14,35,"участник",null,"Соловьева Марина Павловна","МБОУ \"Гимназия №6\""]
[3,"17820232255","Гумерова ","Амелия","Алмазовна","ж","2013-08-28","нет",4,4,14,35,"участник",null,"Соловьева Марина Павловна","МБОУ \"Гимназия №6\""]
[4,{"v":17684728124,"d":"17,684,728,124"},"Юсупова ","Ясмина","Илшатовна","ж","2013-05-24","нет",4,4,16,35,"участник",null,"Соловьева Марина Павловна","МБОУ \"Гимназия №6\""]
[5,"17866948150","Демидова","Дина ","Дмитриевна","ж","2013-10-09","нет",4,4,8,35,"участник",null,"Любицкая Резеда Фаритовна","МБОУ \"Гимназия №6\""]
[6,"17408664991","Кузьмина","Злата","Сергеевна","ж","2013-10-15","нет",4,4,12,35,"участник",null,"Любицкая Резеда Фаритовна","МБОУ \"Гимназия №6\""]
[7,"17957671442","Фирсакова","Ассоль","Борисовна","ж","2013-12-25","нет",4,4,9,35,"участник",null,"Любицкая Резеда Фаритовна","МБОУ \"Гимназия №6\""]
[8,"17412498774","Бычков","Егор","Григорьевич","м","2012-10-07","нет",4,4,33,35,"победитель",null,"Солдатова Елена Николаевна","МБОУ \"Гимназия №6\""]
[9,"178669454 47","Крупнов","Юрий","Алесеевич","м","2013-10-11","нет",4,4,20,35,"призер",null,"Солдатова Елена Николаевна","МБОУ \"Гимназия №6\""]
[10,"17897640953","Лучкина","Анастасия","Руслановна","ж","2013-10-29","нет",4,4,22,35,"призер",null,"Солдатова Елена Николаевна","МБОУ \"Гимназия №6\""]
[11,"17697545440","Вильданова ","Амира","Ильшатовна","ж","2013-05-31","нет",4,4,12,35,"участник",null,"Булгакова Людмила Владимировна","МБОУ \"Гимназия №6\""]
[12,"17606526680","Желтов","Игорь","Владимирович","м","2013-03-12","нет",4,4,4,35,"участник",null,"Булгакова Людмила Владимировна","МБОУ \"Гимназия №6\""]
[13,"176072531 71","Гиззатуллин","Анвар","Артурович","м","2013-02-27","нет",4,4,9,35,"участник",null,"Рудзей Лариса Викторовна","МБОУ \"Гимназия №6\""]
[14,"174633109 67","Баширова","Айзиля","Радиковна","ж","2012-10-30","нет",4,4,16,35,"участник",null,"Рудзей Лариса Викторовна","МБОУ \"Гимназия №6\""]
[15,"175632765 96","Ермолин","Григорий","Александрович","м","2013-04-14","нет",4,4,10,35,"участник",null,"Рудзей Лариса Викторовна","МБОУ \"Гимназия №6\""]
[16,"17759672844","Королева","Дарина","Андреевна","ж","2013-07-18","нет",4,4,7,35,"участник",null,"Шакирова Айгуль Наилевна","МБОУ \"Гимназия №6\""]
[17,"17684395527","Копьев","Ислам","Романович","м","2013-05-13","нет",4,4,12,35,"участник",null,"Шакирова Айгуль Наилевна","МБОУ \"Гимназия №6\""]
[18,"17865012997","Билалов","Амир","Ильясович","м","2014-10-11","нет",4,4,10,35,"участник",null,"Шикирова Айгуль Наилевна","МБОУ \"Гимназия №6\""]
[19,"17428729702","Абдрахманов ","Камиль","Раилевич","м","19.102012","нет",4,4,9,35,"участник",null,"Зарипова Гузель Ирековна","МБОУ \"Гимназия №6\""]
[20,"17539948126","Кувшинова ","Яна","Кирилловна","ж","2013-01-24","нет",4,4,11,35,"участник",null,"Зарипова Гузель Ирековна","МБОУ \"Гимназия №6\""]
[21,"17488007700","Шакирова","Милана","Артуровна","ж","2012-12-09","нет",4,4,8,35,"участник",null,"Зарипова Гузель Ирековна","МБОУ \"Гимназия №6\""]
[22,17534206764,{"$f":"'[1]Sheet 1'!C7","v":"Пстыгина"},{"$f":"'[1]Sheet 1'!D7","v":"Таисия"},"Станиславовна","ж","2013-01-17","нет",5,5,28,37,"призер",null,"Пономаренко Татьяна Олеговна","МБОУ \"Гимназия №6\" "]
[23,17001022714,{"$f":"'[1]Sheet 1'!C8","v":"Закиров"},{"$f":"'[1]Sheet 1'!D8","v":"Айнур"},"Ильгизарович","м","2012-09-21","нет",5,5,29,37,"призер",null,"Пономаренко Татьяна Олеговна","МБОУ \"Гимназия №6\" "]
[24,17019217141,{"$f":"'[1]Sheet 1'!C22","v":"Шакирова"},{"$f":"'[1]Sheet 1'!D22","v":"Ралина"},"Анваровна","ж","2012-01-22","нет",5,5,7,37,"участник",null,"Галлямова Елена Александровна","МБОУ \"Гимназия №6\" "]
[25,17466554909,{"$f":"'[1]Sheet 1'!C23","v":"Шлычков"},{"$f":"'[1]Sheet 1'!D23","v":"Валерий"},"Владимирович","м",{"$f":"[2]Лист1!$D$42","v":"2012-11-20"},"нет",5,5,25,37,"призер",null,"Галлямова Елена Александровна","МБОУ \"Гимназия №6\" "]
[26,"16924112668","Белов","Сергей","Анатольевич","м","2012-04-13","нет",5,5,29,37,"призер",null,"Фасхиева Роза Марселевна","МБОУ \"Гимназия №6\" "]
[27,"17061221627",{"$f":"'[1]Sheet 1'!C31","v":"Файзрахманов"},{"$f":"'[1]Sheet 1'!D31","v":"Даниил "},"Тимурович ","м",{"$f":"[3]Лист1!$D$29","v":"2011-12-29"},"нет",5,5,7,37,"участник",null,"Шарипова Татьяна Анатольевна ","МБОУ \"Гимназия №6\" "]
[28,18842654614,"Хузин ","Тимур","Ринатович","м","2011-12-29","нет",5,5,12,37,"участник",null,"Чинилкина Елена Павловна","МБОУ \"Гимназия №6\" "]
[29,17064051037,"Ибрагимова ","Диляра","Марселевна","ж","2012-02-01","нет",5,5,25,37,"призер",null,"Чинилкина Елена Павловна","МБОУ \"Гимназия №6\" "]
[30,17164294070,"Гиниятуллина","Диляра","Айдаровна","ж","2012-04-13","нет",5,5,9,37,"участник",null,"Чинилкина Елена Павловна","МБОУ \"Гимназия №6\" "]
[32,16967082219,"Давыдова ","Лидия","Игоревна","ж",{"$f":"[4]Лист1!$D$12","v":"2011-12-05"},"нет",5,5,14.5,37,"участник",null,"Ахметзянова Рашида Рауфовна","МБОУ \"Гимназия №6\" "]
[34,17145126648,"Соболева","Дарья","Алексеевна","ж",{"$f":"[4]Лист1!$D$32","v":"2012-03-29"},"нет",5,5,35,37,"победитель",null,"Ахметзянова Рашида Рауфовна","МБОУ \"Гимназия №6\" "]
[35,17287098205,"Белова","Валерия","Кирилловна","ж","2012-07-05","нет",5,5,15.5,37,"участник",null,"Фасхиева Роза Марселевна","МБОУ \"Гимназия №6\" "]
[36,17030221402,"Рахимуллин","Данияр","Айдарович","м","2012-01-23","нет",5,5,7.5,37,"участник",null,"Фасхиева Роза Марселевна","МБОУ \"Гимназия №6\" "]
[37,16977425027,"Камалов","Камиль","Рамилевич","м","2012-01-04","нет",5,5,15,37,"участник",null,"Фасхиева Роза Марселевна","МБОУ \"Гимназия №6\" "]
[38,17404951267,"Абубакиров","Амир","Ильдусович","м",{"$f":"[3]Лист1!$D$4","v":"2012-10-09"},"нет",5,5,5,37,"участник",null,"Шарипова Татьяна Анатольевна ","МБОУ \"Гимназия №6\" "]
[39,17340552452,"Мансуров ","Арсен","Ленарович","м",{"$f":"[3]Лист1!$D$18","v":"2012-08-22"},"нет",5,5,6,37,"участник",null,"Шарипова Татьяна Анатольевна ","МБОУ \"Гимназия №6\" "]
[40,17061228035,"Галеева","Камилла","Руслановна","ж",{"$f":"[5]Лист1!$D$10","v":"2012-02-01"},"нет",5,5,15.5,37,"участник",null,"Шарипова Татьяна Анатольевна ","МБОУ \"Гимназия №6\" "]
[41,17428717695,"Гилязова","Сюмбеля","Гаделевна","ж",{"$f":"[5]Лист1!$D$14","v":"2012-10-28"},"нет",5,5,26,37,"призер",null,"Шарипова Татьяна Анатольевна ","МБОУ \"Гимназия №6\" "]
[42,17264295577,"Белов","Сергей","Антонович","м","2012-04-13","нет",5,5,29,37,"призер",null,"Фасхиева Роза Марселевна","МБОУ \"Гимназия №6\" "]
[43,17292715790,"Чирков ","Егор","Вадимович","м",{"$f":"[5]Лист1!D31","v":"2012-07-17"},"нет",5,5,14.5,37,"участник",null,"Шарипова Татьяна Анатольевна ","МБОУ \"Гимназия №6\" "]
[44,17284890004,"Чукавин","Анатолий","Андреевич","м",{"$f":"[5]Лист1!D32","v":"2012-07-09"},"нет",5,5,9.5,37,"участник",null,"Шарипова Татьяна Анатольевна ","МБОУ \"Гимназия №6\" "]
[45,17496057812,"Стрелков","Владислав","Александрович","м",{"$f":"[5]Лист1!$D$26","v":"2012-12-07"},"нет",5,5,14.5,37,"участник",null,"Шарипова Татьяна Анатольевна ","МБОУ \"Гимназия №6\" "]
[47,18016254140,{"$f":"'[1]Sheet 1'!C12","v":"Попонина"},{"$f":"'[1]Sheet 1'!D12","v":"Арина"},"Артуровна","ж","2011-07-07","нет",6,6,9.5,37,"участник",null,"Пономаренко Татьяна Олеговна","МБОУ \"Гимназия №6\" "]
[48,"16885994762",{"$f":"'[1]Sheet 1'!C15","v":"Лучкина "},{"$f":"'[1]Sheet 1'!D15","v":"Алиса"},"Руслановна","ж","2011-09-17","нет",6,6,32,37,"призер","да","Безрукова Ольга Борисовна","МБОУ \"Гимназия №6\" "]
[49,16726809602,{"$f":"'[1]Sheet 1'!C18","v":"Голованов"},{"$f":"'[1]Sheet 1'!D18","v":"Федор"},"Михайлович","м","2011-01-21","нет",6,6,12.5,37,"участник",null,"Безрукова Ольга Борисовна","МБОУ \"Гимназия №6\" "]
[50,16726809602,{"$f":"'[1]Sheet 1'!C32","v":"Семёнов"},{"$f":"'[1]Sheet 1'!D32","v":"Андрей"},"Сергеевич","м",{"$f":"[6]Лист1!$D$25","v":"2010-10-21"},"нет",6,6,13,37,"участник",null,"Кузнецова Татьяна Леонидовна","МБОУ \"Гимназия №6\" "]
[51,17072825872,{"$f":"'[1]Sheet 1'!C33","v":"Галиуллин"},{"$f":"'[1]Sheet 1'!D33","v":"Камиль "},"Азатович","м",{"$f":"[6]Лист1!$D$13","v":"2012-02-05"},"нет",6,6,13,37,"участник",null,"Кузнецова Татьяна Леонидовна","МБОУ \"Гимназия №6\" "]
[52,"16964678136",{"$f":"'[1]Sheet 1'!C48","v":"Байкеева "},{"$f":"'[1]Sheet 1'!D48","v":"Камиля"},"Тимуровна","ж",{"$f":"[7]Лист1!$C$8","v":"2011-12-09"},"нет",6,6,34,37,"победитель","да","Чинилкина Елена Павловна","МБОУ \"Гимназия №6\" "]
[53,16641974799,"Ахмадиева","Малика","Ильнаровна","ж","2011-05-22","нет",6,6,18,37,"участник",null,"Чинилкина Елена Павловна","МБОУ \"Гимназия №6\" "]
[54,17554766309,"Бекеева","Желанна","Александровна","ж","2011-02-02","нет",6,6,19,37,"призер",null,"Фасхиева Роза Марселевна","МБОУ \"Гимназия №6\" "]
[56,17358183998,{"$f":"'[1]Sheet 1'!C4","v":"Ситулин"},{"$f":"'[1]Sheet 1'!D4","v":"Кирилл"},"Сергеевич","м","2010-02-20","нет",7,7,37,43,"призер",null,"Пономаренко Татьяна Олеговна","МБОУ \"Гимназия №6\" "]
[57,16205763249,{"$f":"'[1]Sheet 1'!C5","v":"Хуснутдинова"},{"$f":"'[1]Sheet 1'!D5","v":"Алина"},"Харисовна","ж","2010-08-30","нет",7,7,37,43,"призер",null,"Пономаренко Татьяна Олеговна","МБОУ \"Гимназия №6\" "]
[58,16124539042,"Баязитова","Дарина","Наилевна","ж","2010-06-26","нет",7,7,38,43,"победитель",null,"Чинилкина Елена Павловна","МБОУ \"Гимназия №6\" "]
[59,18216215851,"Антипова ","Маргарита","Александровна","ж","2011-04-07","нет",7,7,35,43,"призер",null,"Чинилкина Елена Павловна","МБОУ \"Гимназия №6\" "]
[60,"17114976054","Саитов ","Булат","Маратович","м","2010-05-07","нет",7,7,20,43,"участник",null,"Чинилкина Елена Павловна","МБОУ \"Гимназия №6\" "]
[61,18665848135,"Гордеев ","Владислав","Дмитриевич","м",{"$f":"[8]Лист1!$D$14","v":"2010-09-21"},"нет",7,7,33,43,"призер",null,"Чинилкина Елена Павловна","МБОУ \"Гимназия №6\" "]
[62,16480570275,"Мангушева","Наиля","Тагировна","ж",{"$f":"[9]Лист1!$D$17","v":"2010-11-12"},"нет",7,7,12,43,"участник",null,"Шарипова Татьяна Анатольевна ","МБОУ \"Гимназия №6\" "]
[63,19377538325,{"$f":"'[1]Sheet 1'!C13","v":"Ягафаров"},{"$f":"'[1]Sheet 1'!D13","v":"Саттар"},"Ильгамович","м","2009-05-22","нет",8,8,26,43,"участник",null,"Безрукова Ольга Борисовна","МБОУ \"Гимназия №6\" "]
[64,"16020912920",{"$f":"'[1]Sheet 1'!C14","v":"Рафикова"},{"$f":"'[1]Sheet 1'!D14","v":"Ксения"},"Евгеньевна","ж","2009-10-20","нет",8,8,39,43,"призер",null,"Безрукова Ольга Борисовна","МБОУ \"Гимназия №6\" "]
[66,17895611936,{"$f":"'[1]Sheet 1'!C24","v":"Курамшина"},{"$f":"'[1]Sheet 1'!D24","v":"Аделя"},"Тимуровна","ж",{"$f":"[10]Лист1!$D$21","v":"2009-09-29"},"нет",8,8,37,43,"призер",null,"Галлямова Елена Александровна","МБОУ \"Гимназия №6\" "]
[67,17101511910,{"$f":"'[1]Sheet 1'!C25","v":"Солдатов"},{"$f":"'[1]Sheet 1'!D25","v":"Кирилл"},"Николаевич","м",{"$f":"[10]Лист1!$D$29","v":"2009-07-17"},"нет",8,8,38,43,"призер",null,"Галлямова Елена Александровна","МБОУ \"Гимназия №6\" "]
[68,15885251910,{"$f":"'[1]Sheet 1'!C34","v":"Билалова"},{"$f":"'[1]Sheet 1'!D34","v":"Дина "},"Равилевна","ж",{"$f":"[11]Лист1!$D$4","v":"2009-05-06"},"нет",8,8,31,43,"призер",null,"Кузнецова Татьяна Леонидовна","МБОУ \"Гимназия №6\" "]
[69,"106598324 12",{"$f":"'[1]Sheet 1'!C35","v":"Галеева "},{"$f":"'[1]Sheet 1'!D35","v":"Элина"},"Айдаровна","ж",{"$f":"[11]Лист1!$D$7","v":"2009-01-18"},"нет",8,8,40,43,"победитель",null,"Кузнецова Татьяна Леонидовна","МБОУ \"Гимназия №6\" "]
[70,15616332657,{"$f":"'[1]Sheet 1'!C36","v":"Галлямов"},{"$f":"'[1]Sheet 1'!D36","v":"Дамир"},"Ильнарович","ж",{"$f":"[11]Лист1!$D$8","v":"2009-03-19"},"нет",8,8,22,43,"участник",null,"Кузнецова Татьяна Леонидовна","МБОУ \"Гимназия №6\" "]
[71,15885251708,{"$f":"'[1]Sheet 1'!C37","v":"Шигапова"},{"$f":"'[1]Sheet 1'!D37","v":"Камиля"},"Ильнуровна","ж","2010-01-01","нет",8,8,37,43,"призер",null,"Кузнецова Татьяна Леонидовна","МБОУ \"Гимназия №6\" "]
[72,16252004321,{"$f":"'[1]Sheet 1'!C38","v":"Мусина"},{"$f":"'[1]Sheet 1'!D38","v":"Амелия"},"Рустэмовна","ж",{"$f":"[12]Лист1!$D$18","v":"2009-06-10"},"нет",8,8,24,43,"призер",null,"Кузнецова Татьяна Леонидовна","МБОУ \"Гимназия №6\" "]
[73,16285674400,{"$f":"'[1]Sheet 1'!C39","v":"Павлов"},{"$f":"'[1]Sheet 1'!D39","v":"Леонид"},"Витальевич","м",{"$f":"[12]Лист1!$D$20","v":"2009-11-24"},"нет",8,8,29,43,"призер",null,"Кузнецова Татьяна Леонидовна","МБОУ \"Гимназия №6\" "]
[74,17228268274,{"$f":"'[1]Sheet 1'!C40","v":"Салихова"},{"$f":"'[1]Sheet 1'!D40","v":"Вероника"},"Рафаэлевна","ж",{"$f":"[12]Лист1!$D$25","v":"2009-07-02"},"нет",8,8,30,43,"призер",null,"Кузнецова Татьяна Леонидовна","МБОУ \"Гимназия №6\" "]
[75,17993486195,{"$f":"'[1]Sheet 1'!C41","v":"Сафиуллин"},{"$f":"'[1]Sheet 1'!D41","v":"Руслан"},"Риммерович","м","2009-05-25","нет",8,8,27,43,"призер",null,"Кузнецова Татьяна Леонидовна","МБОУ \"Гимназия №6\" "]
[76,17574450193,{"$f":"'[1]Sheet 1'!C9","v":"Гизатуллина"},{"$f":"'[1]Sheet 1'!D9","v":"Софья"},"Маратовна","ж","2008-01-27","нет",9,9,30,52,"призер",null,"Пономаренко Татьяна Олеговна","МБОУ \"Гимназия №6\" "]
[77,19046447177,{"$f":"'[1]Sheet 1'!C10","v":"Галеев"},{"$f":"'[1]Sheet 1'!D10","v":"Асгат"},"Данисович","м","2023-12-19","нет",9,9,50,52,"победитель",null,"Пономаренко Татьяна Олеговна","МБОУ \"Гимназия №6\" "]
[79,15136782968,{"$f":"'[1]Sheet 1'!C26","v":"Чуенкова"},{"$f":"'[1]Sheet 1'!D26","v":"Дарья"},"Олеговна","ж","2008-02-14","нет",9,9,49,52,"призер",null,"Галлямова Елена Александровна","МБОУ \"Гимназия №6\" "]
[80,17194850799,"Хузина","Алина","Маратовна","ж","2008-03-07","нет",9,9,48,52,"призер",null,"Чинилкина Елена Павловна","МБОУ \"Гимназия №6\" "]
[81,15437612868,"Чуранова ","Мария","Максимовна","ж","2009-02-09","нет",9,9,29,52,"призер",null,"Чинилкина Елена Павловна","МБОУ \"Гимназия №6\" "]
[82,15850430160,"Галимова","Элина","Искандэровна","ж",{"$f":"[13]Лист1!$D$8","v":"2008-04-30"},"нет",9,9,18,52,"участник",null,"Чинилкина Елена Павловна","МБОУ \"Гимназия №6\" "]
[83,"15419275874","Михайлова","Елизавета ","Романовна","ж","2008-03-04","нет",9,9,17,52,"участник",null,"Чинилкина Елена Павловна","МБОУ \"Гимназия №6\" "]
[84,16019170335,{"$f":"'[1]Sheet 1'!C19","v":"Абульханов "},{"$f":"'[1]Sheet 1'!D19","v":"Абдель -Малик"},"Мансурович","м","2007-11-08","нет",10,10,57,64,"призер",null,"Сафиуллина Гулия Минсаетовна","МБОУ \"Гимназия №6\" "]
[85,17607874102,{"$f":"'[1]Sheet 1'!C20","v":"Агафетов "},{"$f":"'[1]Sheet 1'!D20","v":"Максим"},"Алесеевич","м","2007-06-14","нет",10,10,56,64,"призер",null,"Сафиуллина Гулия Минсаетовна","МБОУ \"Гимназия №6\" "]
[86,16138362863,{"$f":"'[1]Sheet 1'!C21","v":"Андреева  "},{"$f":"'[1]Sheet 1'!D21","v":"Арина"},"Андреевна","ж","2007-12-24","нет",10,10,31,64,"участник",null,"Сафиуллина Гулия Минсаетовна","МБОУ \"Гимназия №6\" "]
[87,16060292940,{"$f":"'[1]Sheet 1'!C27","v":"Пшеничная"},{"$f":"'[1]Sheet 1'!D27","v":"Мария"},"Сергеевна","ж","2007-08-04","нет",10,10,58,64,"призер",null,"Галлямова Елена Александровна","МБОУ \"Гимназия №6\" "]
[88,15618946399,"Мулюкин",{"$f":"'[1]Sheet 1'!D28","v":"Максим"},"Сергеевич","м",{"$f":"[14]Лист1!$D$24","v":"2007-01-27"},"нет",10,10,60,64,"победитель",null,"Галлямова Елена Александровна","МБОУ \"Гимназия №6\" "]
[90,15086995196,{"$f":"'[1]Sheet 1'!C42","v":"Королёва"},{"$f":"'[1]Sheet 1'!D42","v":"Екатерина"},"Григорьевна","ж",{"$f":"[15]Лист1!$D$15","v":"2006-03-03"},"нет",11,11,26,64,"участник",null,"Кузнецова Татьяна Леонидовна","МБОУ \"Гимназия №6\" "]
[91,16746458712,{"$f":"'[1]Sheet 1'!C43","v":"Левина"},{"$f":"'[1]Sheet 1'!D43","v":"Дарья"},"Александровна","ж","2006-12-25","нет",11,11,60,64,"победитель",null,"Кузнецова Татьяна Леонидовна","МБОУ \"Гимназия №6\" "]
[92,18263077274,{"$f":"'[1]Sheet 1'!C44","v":"Юсупова"},{"$f":"'[1]Sheet 1'!D44","v":"Елизавета "},"Викторовна","ж","2006-05-23","нет",11,11,57,64,"призер",null,"Кузнецова Татьяна Леонидовна","МБОУ \"Гимназия №6\" "]
[93,16956144242,"Закирова ","Диляра","Ирековна","ж","2006-05-01","нет",11,11,31,64,"участник",null,"Ахметзянова Рашида Рауфовна","МБОУ \"Гимназия №6\" "]
[94,16003916325,"Судницин","Руслан","Ленарович","м","2006-05-17","нет",11,11,57,64,"призер",null,"Ахметзянова Рашида Рауфовна","МБОУ \"Гимназия №6\" "]
[95,"16019195250","Хадеева","Алия","Рашитовна","ж",{"$f":"[16]Лист1!$D$27","v":"2006-06-30"},"нет",11,11,58,64,"призер",null,"Ахметзянова Рашида Рауфовна","МБОУ \"Гимназия №6\" "]
[96,15870308377,"Тимергалиева","Алсу","Руслановна","ж",{"$f":"[16]Лист1!$D$26","v":"2006-09-22"},"нет",11,11,31,64,"участник",null,"Ахметзянова Рашида Рауфовна","МБОУ \"Гимназия №6\" "]

{"sheet":"data","index":1,"n_rows":25,"n_cols":4,"rows_kept":25}
[]
["Техника, технология и техническое творчество .  Ручная обработка древесины"]
["Техника, технология и техническое творчество .  Ручная обработка металла"]
["Техника, технология и техническое творчество .  Механическая обработка древесины"]
["Техника, технология и техническое творчество .  Механическая обработка металла"]
["Техника, технология и техническое творчество .  Электротехника"]
["Техника, технология и техническое творчество .  Робототехника"]
["Техника, технология и техническое творчество .  3d - моделирование и печать"]
["Техника, технология и техническое творчество .  Обработка материалов на лазерно-гравировальной машине"]
["Техника, технология и техническое творчество .  Промышленный дизайн"]
["Культура дома, дизайн и технологии .  Обработка швейного изделия или узла + моделирование швейных изделий"]
["Культура дома, дизайн и технологии .  Обработка швейного изделия или узла + моделирование швейных изделий с использованием графических редакторов"]
["Культура дома, дизайн и технологии .  Обработка швейного изделия или узла на швейно-вышивальном оборудовании + моделирование швейных изделий"]
["Культура дома, дизайн и технологии .  Обработка швейного изделия или узла на швейно-вышивальном оборудовании + моделирование швейных изделий с использованием графических редакторов"]
["Культура дома, дизайн и технологии .  Робототехника"]
["Культура дома, дизайн и технологии .  3d - моделирование и печать"]
["Культура дома, дизайн и технологии .  Обработка материалов на лазерно-гравировальной машине"]
["Культура дома, дизайн и технологии .  Промышленный дизайн"]
["Роботехника .  "]
["Информационная безопасность ."]
[]
[]
["участник"]
["призер",null,"да","да"]
["победитель",null,null,"нет"]